[Event "European Women-ch 2023"]
[Site "Petrovac"]
[Date "2023.03.27"]
[Round "9.11"]
[White "Cyfka, Karina"]
[Black "Abdulla, Khayala"]
[Result "1-0"]
[ECO "D33"]
[WhiteElo "2350"]
[BlackElo "2221"]
[Annotator "TA"]
[PlyCount "117"]
[EventDate "2023.03.15"]
[EventType "swiss"]
[EventCountry "MNE"]
[SourceTitle "playchess.com"]
[Source "ChessBase"]
[SourceQuality "1"]
[TimeControl "40/5400+30:1800+30"]

{[%evp 16,117,54,47,39,42,38,44,38,-16,0,-8,0,3,16,-67,-31,-29,-23,-31,-20,-32,-22,-31,-13,-13,0,-2,33,-81,-119,-87,-66,-41,0,0,0,0,8,0,68,0,0,0,0,0,12,10,10,10,28,28,28,10,14,16,58,29,50,51,53,47,133,124,117,83,105,49,175,190,187,197,177,215,169,50,302,297,290,299,220,208,382,208,201,188,196,167,166,139,352,226,377,362,510,416,523,522,29974,29975,29981,29982,29981,29982]} 1. d4 {[%emt 0:00:03]} d5 {[%emt 0:00:20]} 2. c4 {[%emt 0:00:16]} e6 {[%emt 0:00:15]} 3. Nc3 {[%emt 0:00:13]} c5 {[%emt 0:01:29]} 4. cxd5 {[%emt 0:00:50]} exd5 {[%emt 0:00:07]} 5. Nf3 {[%emt 0:02:09]} Nf6 {[%emt 0:01:00]} 6. g3 {[%emt 0:02:46]} Nc6 {[%emt 0:01:43]} 7. Bg2 {[%emt 0:00:13]} cxd4 {[%emt 0:00:21] is more profitable than 7...Be7 at the moment.} 8. Nxd4 {[%emt 0:01:10]} Bc5 {[%emt 0:00:10]} 9. Nb3 {[%emt 0:02:14][%csl LRc5,LRd5]} Bb6 {[%emt 0:00:23] D33: Tarrasch Defence: 6 g3 sidelines.} 10. O-O {[%emt 0:02:06][%cal Oc1g5]} (10. Bxd5 Nb4 11. Bf3 Qxd1+ 12. Kxd1 Ng4 13. Bxg4 Bxg4 $11) 10... d4 {[%emt 0:01:25]} 11. Na4 {[%emt 0:00:22]} O-O {[%emt 0:01:41] White is slightly better.} 12. Nac5 {[%emt 0:05:40]} (12. Re1 $14) 12... Qe7 {[%emt 0:06:39]} (12... a5 $5 {[%cal Ra5a4]} 13. Na4 Re8 $11) 13. Nd3 {[%emt 0:00:30]} Bg4 {[%emt 0:01:47]} 14. Re1 {[%emt 0:02:59]} Rfe8 {[%emt 0:01:59] [#]} 15. Bf1 $146 {[%emt 0:01:49]} (15. Bg5 $11) ({Predecessor:} 15. Bg5 h6 16. Bxf6 Qxf6 17. Qd2 a5 18. h3 Bf5 19. Nbc5 Re7 20. Rac1 Rc8 21. Nf4 {1-0 Vastrukhin,O (2401)-Moussard,J (2625) Titled Tuesday intern op 01st Sept blitz 2020 (7)}) 15... Rad8 {[%emt 0:13:32]} 16. Bg5 {[%emt 0:06:16]} h6 {[%emt 0:02:02]} 17. Bxf6 {[%emt 0:01:03]} Qxf6 {[%emt 0:00:05]} 18. Qd2 {[%emt 0:04:22]} Ne5 {[%emt 0:04:28]} 19. Rac1 {[%emt 0:03:07]} Bf5 {[%emt 0:07:24]} 20. Bg2 {[%emt 0:06:46]} Re7 {[%emt 0:08:03]} 21. a4 {[%emt 0:03:05]} a5 {[%emt 0:16:02]} 22. Nbc5 {[%emt 0:20:46]} (22. Nxa5 $14 {stays ahead.} Bxd3 23. exd3 Nxd3 24. Qxd3 Rxe1+ 25. Rxe1 Bxa5 26. Rd1) 22... Bxc5 $1 $17 {[%emt 0:06:14]} 23. Nxc5 {[%emt 0:00:05]} b6 {[%emt 0:01:22]} 24. Nd3 {[%emt 0:01:41]} Bxd3 {[%emt 0:03:59]} 25. exd3 {[%emt 0:00:06]} Rde8 {[%emt 0:00:06]} 26. Re4 {[%emt 0:06:11]} Nd7 {[%emt 0:07:07] [#]} 27. Rc6 $1 {[%emt 0:08:26][%mdl 64] Repels Nc5. Deflection} Re6 {[%emt 0:02:49]} (27... Qxc6 $11 28. Rxe7 (28. Rxd4 $2 Re1+ $19) 28... Qc8) (27... Rxe4 28. Bxe4) 28. Rexe6 {[%emt 0:05:26]} (28. b4 $1 $14) 28... Rxe6 $11 {[%emt 0:00:28]} 29. Rxe6 {[%emt 0:00:34]} Qxe6 $14 {[%emt 0:00:39][%mdl 4096] Endgame KQB-KQN} 30. b4 {[%emt 0:00:48]} Qe5 {[%emt 0:02:00]} 31. Bc6 {[%emt 0:01:17]} Nf6 {[%emt 0:01:57]} 32. bxa5 {[%emt 0:01:09]} bxa5 {[%emt 0:00:13]} 33. Bb5 {[%emt 0:00:42]} Qc7 {[%emt 0:00:09]} 34. Bc4 {[%emt 0:00:22]} (34. Qb2 $5 {[%cal Rb2d4]}) 34... Nd7 {[%emt 0:01:10]} 35. Qe2 {[%emt 0:02:15]} Nf6 {[%emt 0:04:27]} 36. Qb2 {[%emt 0:01:04]} Qa7 {[%emt 0:01:47]} 37. Qb5 {[%emt 0:00:42]} Qc7 {[%emt 0:00:40]} 38. Qa6 {[%emt 0:03:37]} Kf8 {[%emt 0:01:08]} ({Black should try} 38... Kh8 $14) 39. Qa8+ $16 {[%emt 0:00:49]} Ke7 {[%emt 0:00:04]} 40. h3 {[%emt 0:00:00]} Qb6 {[%emt 0:00:00]} 41. Qc8 {[%emt 0:07:30]} (41. Bb5 $16) 41... g6 {[%emt 0:11:53]} (41... Nh7 $14) 42. Bb5 $1 $18 {[%emt 0:02:00]} h5 {[%emt 0:04:14]} 43. Kg2 {[%emt 0:03:17]} h4 {[%emt 0:03:33]} 44. g4 {[%emt 0:02:39]} (44. gxh4 $6 Nh5 $16) 44... Qd6 {[%emt 0:02:58]} 45. Kg1 {[%emt 0:03:40]} (45. Qb7+ $18 Kf8 46. Bc4) 45... Qe5 $2 {[%emt 0:04:51][%mdl 8192]} (45... Nd5 $1 $14) 46. Qb7+ $1 {[%emt 0:02:18]} Kf8 {[%emt 0:00:07] [#] Threatens to win with ...Nd5.} 47. Bc4 {[%emt 0:00:23][%csl Gc4][%cal Rb7f7] Repels Nd5} Qe1+ {[%emt 0:03:46]} 48. Kg2 {[%emt 0:00:06][%csl Gc4][%cal Rb7f7]} Qe8 {[%emt 0:00:54]} (48... Qe7 {is a better defense.} 49. Qb6 Kg8) 49. Qa7 {[%emt 0:00:50]} (49. Kf1 $142) 49... Qd7 {[%emt 0:01:05]} 50. Qb8+ {[%emt 0:04:19]} ({Don't play} 50. Qxa5 $6 Qb7+ 51. Kf1 Qh1+ 52. Ke2 Qxh3) 50... Kg7 {[%emt 0:01:27] [#]} 51. Qe5 $1 {[%emt 0:01:38] g5 is the strong threat.} Qb7+ {[%emt 0:00:05]} 52. Kh2 {[%emt 0:01:19][%cal Og4g5] Hoping for g5!} Qf3 $2 {[%emt 0:01:39]} (52... Qb2 $16) 53. Qxd4 {[%emt 0:00:09] Black must now prevent g5. Active counter play!} Kh7 $2 {[%emt 0:01:09]} (53... g5 54. Qe3 Qxe3 55. fxe3 Nd7) 54. Kg1 {[%emt 0:03:49]} ({Less strong is} 54. Bxf7 Nxg4+ 55. hxg4 Qxf7 $18) 54... Ng8 {[%emt 0:01:27]} (54... Kg8 $142 55. Qe5 Kh7) 55. Bd5 {[%emt 0:01:14]} Qd1+ {[%emt 0:00:41]} 56. Kg2 {[%emt 0:00:14]} Nh6 {[%emt 0:00:15]} 57. g5 {[%emt 0:02:00][%csl LRh4,LRh6][%mdl 64] Discovered Attack. White mates.} Nf5 {[%emt 0:00:14]} 58. Qf6 {[%emt 0:00:19]} Ne3+ {[%emt 0:01:24]} 59. fxe3 {[%emt 0:00:06] Weighted Error Value: White=0.21 (precise) /Black=0.49} 1-0

[Event "European Women-ch 2023"]
[Site "Petrovac"]
[Date "2023.03.27"]
[Round "9.11"]
[White "Kulon, Klaudia"]
[Black "Gunina, Valentina"]
[Result "1-0"]
[ECO "B12"]
[WhiteElo "2290"]
[BlackElo "2478"]
[Annotator "TA"]
[PlyCount "71"]
[EventDate "2023.03.15"]
[EventType "swiss"]
[EventCountry "MNE"]
[SourceTitle "playchess.com"]
[Source "ChessBase"]
[SourceQuality "1"]
[TimeControl "40/5400+30:1800+30"]

{[%evp 9,71,13,26,17,47,45,49,12,34,42,30,29,58,52,50,45,53,50,82,85,88,102,127,127,160,142,139,158,159,162,173,167,226,116,229,197,218,200,206,210,212,200,183,142,226,139,260,246,301,305,300,265,972,980,910,893,1358,1277,2011,1419,29984,29985,29992,29993]} 1. e4 {[%emt 0:00:03]} c6 {[%emt 0:00:06]} 2. d4 {[%emt 0:00:06]} d5 {[%emt 0:00:03]} 3. e5 {[%emt 0:00:04]} c5 {[%emt 0:00:04]} 4. dxc5 {[%emt 0:00:09]} e6 {[%emt 0:00:13]} 5. Bd3 {[%emt 0:00:07]} Nd7 {[%emt 0:03:58]} 6. Nf3 {[%emt 0:00:30] B12: Caro-Kann: Advance Variation.} Bxc5 {[%emt 0:01:09]} 7. O-O {[%emt 0:00:24]} Ne7 {[%emt 0:00:22][%cal Bg8e7,Be7g6,Bg6f4][%mdl 32]} 8. a3 {[%emt 0:00:50] White is slightly better.} a6 {[%emt 0:00:16]} 9. b4 {[%emt 0:00:54]} Ba7 {[%emt 0:00:12] [#]} 10. Re1 $146 {[%emt 0:01:07]} ({Predecessor:} 10. Bb2 b5 11. a4 bxa4 12. c4 dxc4 13. Bxc4 O-O 14. Qe2 Bb7 15. Nbd2 Ng6 16. g3 {0-1 Pinheiro,I (2320)-Csonka,B (2474) Titled Tuesday intern op 01st Mar Late blitz 2022 (8)}) 10... Ng6 {[%emt 0:11:39]} 11. Bb2 {[%emt 0:04:31]} O-O {[%emt 0:01:59]} 12. Nbd2 {[%emt 0:07:16][%cal Bb1d2,Bd2b3,Bb3d4][%mdl 32]} Nf4 {[%emt 0:01:17]} 13. Bf1 {[%emt 0:10:09]} f6 {[%emt 0:00:29]} 14. exf6 {[%emt 0:04:25] White leaves nothing to chance now.} (14. g3 Ng6 $11) 14... Nxf6 {[%emt 0:00:32] [#]} 15. c4 $1 {[%emt 0:02:56][%cal Bc2c4,Bc4c5][%mdl 32]} Ng4 {[%emt 0:08:01]} (15... Qb6 $2 16. c5 Qd8 17. g3 $18) 16. c5 {[%emt 0:01:40]} b6 {[%emt 0:00:18]} 17. Nb3 {[%emt 0:00:54]} e5 {[%emt 0:04:27]} 18. Bxe5 {[%emt 0:19:49]} Nxe5 {[%emt 0:00:59]} 19. Nxe5 {[%emt 0:00:07]} Qf6 {[%emt 0:07:20][%cal Oa6a5]} 20. Ra2 {[%emt 0:10:44]} a5 {[%emt 0:10:49] [#]} (20... bxc5 {was necessary.} 21. Nxc5 Qd6) 21. g3 {[%emt 0:02:10]} (21. bxa5 bxc5 22. g3 Nh3+ 23. Kg2 (23. Bxh3 Bxh3 24. Rae2 c4 $15) 23... Kh8 $11) (21. c6 $1 $18) 21... a4 {[%emt 0:04:36]} (21... Nh3+ $16 {was called for.} 22. Kh1 (22. Bxh3 Bxh3 23. Rae2 bxc5 $16) 22... a4) 22. Nd4 {[%emt 0:00:30]} bxc5 {[%emt 0:01:19]} 23. Ndc6 {[%emt 0:00:51] Excellent horsemanship.} Nh3+ {[%emt 0:15:01]} 24. Bxh3 {[%emt 0:00:15]} Bxh3 {[%emt 0:00:06]} 25. Nxa7 {[%emt 0:01:13]} (25. Qxd5+ $6 Be6 26. Ng4 (26. Qd2 cxb4 27. axb4 Bxa2 $17) 26... Bxd5 $16) 25... Rxa7 {[%emt 0:00:36]} 26. bxc5 {[%emt 0:02:52]} Re7 {[%emt 0:04:48]} (26... Bf5 $16 27. f4 (27. Qxd5+ Be6 $16) 27... Be4) 27. Qd4 {[%emt 0:02:37] Hoping for Rae2.} ({Resist} 27. Qxd5+ $6 Be6 28. Qd2 Bxa2 29. Qxa2+ Kh8 $16) 27... Rd8 {[%emt 0:08:35]} (27... Bf5 $16 {is a better defense.}) 28. f4 {[%emt 0:03:22][%cal Bf2f4,Bf4g5][%mdl 32]} g5 {[%emt 0:00:11]} 29. Rf2 {[%emt 0:00:32]} ({Less strong is} 29. Qxa4 gxf4 30. Qxf4 Qxf4 31. gxf4 Rg7+ 32. Kh1 Rf8 $16) 29... Rde8 {[%emt 0:02:09]} 30. Qxd5+ {[%emt 0:02:26]} Kh8 $2 {[%emt 0:08:03]} (30... Qf7 31. Qxf7+ (31. Nxf7 $2 {leads to mate.} Rxe1+) 31... Rxf7) 31. fxg5 $18 {[%emt 0:04:53]} Qg7 {[%emt 0:00:01]} 32. Rfe2 {[%emt 0:01:13][%cal Oe5g6] Ng6+! would be deadly.} Re6 {[%emt 0:02:32] Against Ng6+} 33. Re3 {[%emt 0:03:01] g4 is the strong threat.} Bf5 {[%emt 0:03:22]} 34. g4 {[%emt 0:00:35]} Bc2 {[%emt 0:00:01] [#]} 35. Nf7+ $1 {[%emt 0:01:55][%mdl 512]} Kg8 {[%emt 0:01:15]} (35... Qxf7 36. Rxe6) 36. Nh6+ {[%emt 0:00:19] Weighted Error Value: White=0.14 (very precise) /Black=0.55} 1-0

[Event "European Women-ch 2023"]
[Site "Petrovac"]
[Date "2023.03.27"]
[Round "9.11"]
[White "Kobak, Polina"]
[Black "Valkova, Angelika"]
[Result "1/2-1/2"]
[ECO "A58"]
[WhiteElo "1815"]
[BlackElo "2055"]
[Annotator "TA"]
[PlyCount "52"]
[EventDate "2023.03.15"]
[EventType "swiss"]
[EventCountry "MNE"]
[SourceTitle "playchess.com"]
[Source "ChessBase"]
[SourceQuality "1"]
[TimeControl "40/5400+30:1800+30"]

{[%evp 9,52,25,35,37,36,33,27,9,25,11,19,16,23,0,-5,-14,25,0,14,25,41,36,61,59,49,50,94,24,14,18,6,12,29,6,20,15,11,0,12,12,11,7,7,4,12]} 1. d4 {[%emt 0:00:03]} Nf6 {[%emt 0:00:21]} 2. c4 {[%emt 0:00:09]} c5 {[%emt 0:00:14]} 3. d5 {[%emt 0:00:09]} b5 {[%emt 0:00:06]} 4. cxb5 {[%emt 0:00:15]} a6 {[%emt 0:00:04]} 5. bxa6 {[%emt 0:00:20]} e6 {[%emt 0:00:11]} 6. Nc3 {[%emt 0:01:54] A58: Benko/Volga Gambit: Lines with 5 bxa6.} exd5 {[%emt 0:00:17]} 7. Nxd5 {[%emt 0:00:18][%cal Oe2e4]} Be7 {[%emt 0:00:06]} 8. e3 {[%emt 0:05:35] White has an edge.} O-O {[%emt 0:03:13]} 9. Nf3 {[%emt 0:07:39]} Nxd5 {[%emt 0:05:46]} 10. Qxd5 {[%emt 0:00:06]} Ra7 {[%emt 0:00:06]} 11. Bc4 {[%emt 0:04:40] [#]} Nxa6 $146 {[%emt 0:06:58]} ({Predecessor:} 11... Bxa6 12. Bxa6 Nxa6 13. O-O Nb4 14. Qb3 d5 15. a3 c4 16. Qd1 Nd3 17. Ne1 Nxc1 18. Rxc1 {½-½ Sarana,A (2654)-Cheparinov,I (2686) Titled Tuesday intern op 26th May blitz 2020 (8)}) 12. Qd1 {[%emt 0:08:37]} (12. Ne5 {feels hotter.} Qe8 13. O-O Nb4 14. Qd2) 12... Bb7 {[%emt 0:07:12][%mdl 1024] Black has compensation.} 13. Bd2 {[%emt 0:02:50]} d5 {[%emt 0:00:49]} 14. Be2 {[%emt 0:02:24]} Bf6 {[%emt 0:05:32]} 15. O-O {[%emt 0:02:58]} Qb6 {[%emt 0:12:26]} 16. Bc3 {[%emt 0:11:50]} Bxc3 {[%emt 0:06:39]} 17. bxc3 {[%emt 0:00:04]} c4 {[%emt 0:00:22] [#]} 18. e4 {[%emt 0:11:36]} dxe4 $11 {[%emt 0:05:46]} 19. Ne5 {[%emt 0:01:03][%cal Oe5d7,Bf3e5,Be5c4,Bc4d6][%mdl 32] Threatens to win with Nd7!} Nc5 {[%emt 0:08:46][%cal Ba6c5,Bc5e6,Be6d4,Bd4c2][%mdl 32]} 20. Nxc4 {[%emt 0:06:06]} Qf6 {[%emt 0:03:37][%cal Ob7a6]} 21. Qd4 {[%emt 0:08:19]} Qxd4 {[%emt 0:01:33] The position is equal.} 22. cxd4 {[%emt 0:00:04]} Ne6 {[%emt 0:00:11]} 23. Nd6 {[%emt 0:06:31]} Nxd4 {[%emt 0:00:32]} 24. Bc4 {[%emt 0:00:37]} Ba6 {[%emt 0:02:52]} 25. Bxa6 {[%emt 0:03:12]} Rxa6 {[%emt 0:00:07]} 26. Nxe4 {[%emt 0:00:05]} Nc2 {[%emt 0:00:48] Weighted Error Value: White=0.14 (very precise) /Black=0.08 (flawless)} 1/2-1/2

[Event "European Women-ch 2023"]
[Site "Petrovac"]
[Date "2023.03.27"]
[Round "9.12"]
[White "Sliwicka, Alicja"]
[Black "Efroimski, Marsel"]
[Result "1/2-1/2"]
[ECO "C02"]
[WhiteElo "2272"]
[BlackElo "2451"]
[Annotator "TA"]
[PlyCount "149"]
[EventDate "2023.03.15"]
[EventType "swiss"]
[EventCountry "MNE"]
[SourceTitle "playchess.com"]
[Source "ChessBase"]
[SourceQuality "1"]
[TimeControl "40/5400+30:1800+30"]

{[%evp 11,149,0,0,-27,-27,-39,-32,-43,-26,-26,-17,-23,0,0,0,0,0,0,38,8,42,0,0,0,0,0,0,0,39,37,37,37,32,39,39,38,27,0,0,0,0,0,0,8,8,0,50,10,60,64,77,86,93,58,72,34,82,82,88,85,135,8,8,0,0,0,0,0,39,0,8,8,8,8,8,8,8,8,8,8,20,8,8,8,8,8,8,8,8,0,8,8,8,8,8,0,10,0,8,8,8,8,8,0,8,8,8,8,8,9,18,18,36,18,18,8,8,8,8,8,8,0,0,0,0,0,0,0,8,8,8,8,8,0,7,0,0,0,0,0]} 1. e4 {[%emt 0:00:04]} e6 {[%emt 0:02:45]} 2. d4 {[%emt 0:00:06]} d5 {[%emt 0:00:04]} 3. e5 {[%emt 0:00:06]} c5 {[%emt 0:00:03]} 4. c3 {[%emt 0:00:06]} Nc6 {[%emt 0:00:05]} 5. Nf3 {[%emt 0:00:05]} Qb6 {[%emt 0:00:03]} 6. Bd3 {[%emt 0:00:09]} cxd4 {[%emt 0:00:05]} 7. O-O $1 {[%emt 0:00:07][%mdl 4] is more profitable than 7.cxd4 at the moment. C02: French: Advance Variation.} Bd7 {[%emt 0:00:02]} 8. Re1 {[%emt 0:00:07]} Nge7 {[%emt 0:00:23]} 9. h4 {[%emt 0:00:08] Black is slightly better.} a6 {[%emt 0:00:04]} 10. Nbd2 {[%emt 0:00:10]} dxc3 {[%emt 0:00:23]} 11. bxc3 {[%emt 0:00:04]} Ng6 {[%emt 0:00:19]} (11... Qc7 $11) 12. Nb3 $14 {[%emt 0:00:08]} Qc7 {[%emt 0:00:30][%cal Rg6e5]} 13. Qe2 {[%emt 0:00:06]} f6 {[%emt 0:00:05]} 14. exf6 {[%emt 0:00:05]} gxf6 {[%emt 0:00:36] [#]} 15. Rb1 $146 {[%emt 0:02:57]} (15. c4 $5 {[%cal Rc4d5]} O-O-O 16. cxd5 exd5 17. Bxg6 hxg6 18. Bb2 $11) ({Predecessor:} 15. c4 O-O-O 16. cxd5 exd5 17. Bxg6 hxg6 18. Bb2 Be7 19. Rac1 Rhe8 20. Qd1 Kb8 21. Rxe7 Rxe7 22. Bxf6 {½-½ Kiolbasa,O (2399)-Osmak,I (2419) Wroclaw Litwinska Memorial-A rapid 2021 (5.1)}) 15... Nge5 {[%emt 0:12:00]} 16. Bf4 {[%emt 0:17:57][%cal Rf3e5]} Bd6 {[%emt 0:00:49] White must now prevent ...Nxf3+.} 17. Nxe5 {[%emt 0:26:03]} Nxe5 {[%emt 0:00:42]} 18. Bxe5 {[%emt 0:04:51]} Bxe5 {[%emt 0:03:48]} 19. c4 {[%emt 0:00:08]} dxc4 {[%emt 0:08:20]} (19... O-O $5) 20. Bxc4 {[%emt 0:00:26][%cal Bd3c4,Bc4e6,Be6d5][%mdl 32]} O-O {[%emt 0:03:21]} 21. Rbc1 {[%emt 0:01:22][%cal Oc4e6] Hoping for Bxe6+!} (21. Qg4+ Kh8 22. Bxe6 Rg8 $17) 21... Kh8 {[%emt 0:06:57] [#]} ({Don't take} 21... Bh2+ 22. Kh1 Kh8 23. Bxe6 $16) 22. Bxe6 $1 {[%emt 0:07:21][%mdl 64] Discovered Attack} Bc6 {[%emt 0:00:20]} 23. Bd5 $1 {[%emt 0:12:12]} Rae8 {[%emt 0:22:59]} 24. Qh5 {[%emt 0:01:18] next Bxc6 is good for White.} Bh2+ {[%emt 0:05:45] A strong pair of Bishops.} 25. Kh1 {[%emt 0:00:06] Rxe8 would be deadly.} Rxe1+ {[%emt 0:01:29]} 26. Rxe1 {[%emt 0:00:04] With the idea Bxc6.} Bxd5 {[%emt 0:02:23]} 27. Qxd5 $40 {[%emt 0:00:12][%mdl 128] Black needs to defend precisely.} Be5 {[%emt 0:03:01]} 28. Rc1 {[%emt 0:01:33]} Qe7 {[%emt 0:06:14]} ({Black should try} 28... Rd8 $11 29. Qf3 Qd7) 29. Rd1 {[%emt 0:04:28]} Rc8 {[%emt 0:07:40]} (29... f5 $11) 30. g3 {[%emt 0:01:10]} b5 {[%emt 0:00:11]} 31. Kg2 {[%emt 0:00:24]} Qc7 {[%emt 0:05:33]} 32. Rc1 {[%emt 0:05:31] Against Qc6} Bc3 {[%emt 0:00:15]} 33. Nd2 {[%emt 0:03:39] White is more active.} b4 {[%emt 0:04:29]} (33... Qc6 $1 $14 {should be considered.} 34. Qf3 Qxf3+ 35. Kxf3 (35. Nxf3 b4 $11) 35... b4) 34. Qf3 $16 {[%emt 0:03:34]} Qc6 {[%emt 0:01:42] [#]} 35. Ne4 $1 {[%emt 0:00:15]} a5 {[%emt 0:00:45] [#]} (35... Kg7 $142) 36. Nxc3 {[%emt 0:02:05]} ({White should play} 36. h5 $1 $16) 36... bxc3 {[%emt 0:00:05][%mdl 4096] Endgame KQR-KQR} 37. Rc2 {[%emt 0:02:17]} Kg7 {[%emt 0:01:10]} 38. Qxc6 {[%emt 0:00:05]} Rxc6 $11 {[%emt 0:00:03] KR-KR} 39. Kf3 {[%emt 0:01:18]} Rc4 {[%emt 0:02:24]} 40. a3 {[%emt 0:00:00]} f5 {[%emt 0:00:00]} 41. Ke3 {[%emt 0:03:25]} f4+ {[%emt 0:02:24]} 42. Kd3 $1 {[%emt 0:03:22]} Ra4 {[%emt 0:00:03]} 43. Rxc3 {[%emt 0:00:16]} fxg3 {[%emt 0:00:04]} 44. fxg3 {[%emt 0:00:06]} Rg4 {[%emt 0:06:14]} 45. Ke2 {[%emt 0:02:05]} a4 {[%emt 0:00:36]} 46. Kf2 {[%emt 0:03:23]} h5 {[%emt 0:02:26]} 47. Kg2 {[%emt 0:06:00] aiming for Rf3.} Rd4 {[%emt 0:03:41]} 48. Kf3 {[%emt 0:10:50]} Kg6 {[%emt 0:00:32]} 49. Ke3 $1 {[%emt 0:03:04]} Rg4 {[%emt 0:00:07]} 50. Kf2 {[%emt 0:00:06]} Rd4 {[%emt 0:00:19]} 51. Rc6+ {[%emt 0:01:26]} Kg7 {[%emt 0:03:15]} 52. Rc5 {[%emt 0:00:10]} Kh6 $1 {[%emt 0:00:35]} 53. Rc3 {[%emt 0:02:57]} Kg6 {[%emt 0:01:43]} 54. Kg2 {[%emt 0:01:14]} Rd2+ {[%emt 0:02:06]} 55. Kh3 {[%emt 0:00:51] Strongly threatening Rc6+.} Rd4 {[%emt 0:00:43]} 56. Rc6+ {[%emt 0:00:40]} Kg7 {[%emt 0:00:17]} 57. Rc3 {[%emt 0:03:08]} Kg6 {[%emt 0:00:06]} 58. Rf3 {[%emt 0:00:13]} Rc4 {[%emt 0:00:22]} 59. Rd3 {[%emt 0:00:31]} Kg7 {[%emt 0:00:15]} 60. Kg2 {[%emt 0:00:20]} Kg6 {[%emt 0:00:25]} 61. Re3 {[%emt 0:00:48]} Kg7 {[%emt 0:00:32]} 62. Rf3 {[%emt 0:00:09] And now Rf4 would win.} Rc2+ $1 {[%emt 0:01:33] The position is equal.} 63. Kh3 {[%emt 0:00:13]} Ra2 {[%emt 0:00:16]} 64. g4 {[%emt 0:00:47]} Kg6 {[%emt 0:05:50]} 65. Kg3 {[%emt 0:02:55]} Rc2 {[%emt 0:03:54]} 66. Rd3 {[%emt 0:00:40]} hxg4 {[%emt 0:00:41]} 67. Kxg4 {[%emt 0:00:14] Threatens to win with Rd4.} Rc4+ {[%emt 0:00:13]} 68. Kg3 {[%emt 0:00:26]} Kh5 {[%emt 0:00:18]} 69. Rd5+ {[%emt 0:00:42]} Kh6 {[%emt 0:00:12]} 70. Rf5 {[%emt 0:00:42]} Rc3+ {[%emt 0:00:31]} 71. Rf3 {[%emt 0:00:04]} Rc4 {[%emt 0:00:04]} 72. Re3 {[%emt 0:01:07]} Kh5 {[%emt 0:00:07]} 73. Re5+ {[%emt 0:00:24]} Kh6 {[%emt 0:00:31]} 74. Re6+ {[%emt 0:00:37]} Kh5 {[%emt 0:00:11]} 75. Re5+ {[%emt 0:00:09] Weighted Error Value: White=0.10 (very precise) /Black=0.08 (flawless)} 1/2-1/2

[Event "European Women-ch 2023"]
[Site "Petrovac"]
[Date "2023.03.27"]
[Round "9.12"]
[White "Kejzar, Petra"]
[Black "Maione, Melissa"]
[Result "1-0"]
[ECO "D00"]
[WhiteElo "2128"]
[BlackElo "2028"]
[Annotator "TA"]
[PlyCount "71"]
[EventDate "2023.03.15"]
[EventType "swiss"]
[EventCountry "MNE"]
[SourceTitle "playchess.com"]
[Source "ChessBase"]
[SourceQuality "1"]
[TimeControl "40/5400+30:1800+30"]

{[%evp 9,71,6,44,25,18,0,8,9,83,8,14,12,5,26,20,-7,64,45,110,83,103,107,106,103,101,41,144,130,520,517,554,553,537,519,596,601,595,585,600,579,589,600,595,583,644,621,718,719,720,720,748,741,728,715,886,868,975,885,981,975,919,909,862,853]} 1. d4 {[%emt 0:00:02][%cal Bd2d4,Bd4c5][%mdl 32]} Nf6 {[%emt 0:00:12]} 2. Nc3 {[%emt 0:00:05]} d5 {[%emt 0:02:20]} 3. Bf4 {[%emt 0:00:07]} a6 {[%emt 0:02:33]} 4. e3 {[%emt 0:00:32]} c5 {[%emt 0:01:52]} 5. dxc5 {[%emt 0:01:55]} Nc6 {[%emt 0:01:54]} 6. Nf3 {[%emt 0:00:42] Against e5. D00: 1 d4 d5: Unusual lines.} Bg4 {[%emt 0:02:22][%cal Oe7e5]} 7. Be2 {[%emt 0:00:35]} e6 {[%emt 0:01:46]} 8. Na4 {[%emt 0:08:16] The position is equal.} Ne4 {[%emt 0:12:25]} (8... Bxf3 $11 9. Bxf3 Bxc5) 9. O-O {[%emt 0:01:48]} (9. Nb6 $16) 9... Nxc5 $11 {[%emt 0:01:32]} 10. c4 {[%emt 0:06:08]} dxc4 $1 {[%emt 0:02:35]} 11. Nxc5 {[%emt 0:01:27]} Bxc5 {[%emt 0:00:18] [#]} 12. Qc2 $146 {[%emt 0:12:29]} ({Predecessor:} 12. Bxc4 Qxd1 13. Rfxd1 e5 14. Rd5 exf4 15. Rxc5 Bxf3 16. gxf3 fxe3 17. fxe3 O-O 18. Bd5 {0-1 Fajdetic,H (2151)-Krstulovic,A (2381) Titled Tuesday intern op 30th Aug Late blitz 2022 (2)}) 12... Qe7 {[%emt 0:04:17]} (12... O-O $11) 13. Qxc4 $14 {[%emt 0:02:41] aiming for Bg5.} Bh5 {[%emt 0:08:28]} (13... Ba7 $14) 14. Rac1 {[%emt 0:00:41]} Bd6 {[%emt 0:02:52]} 15. Bxd6 {[%emt 0:03:40]} Qxd6 {[%emt 0:00:09]} 16. Rfd1 {[%emt 0:00:24][%cal Bf1d1,Bd1d6,Bd6c6,Bc6b6][%mdl 32]} Qe7 {[%emt 0:01:31]} 17. Qc5 {[%emt 0:02:20]} (17. g4 $16 Bg6 18. Ne5) 17... Bg6 {[%emt 0:07:13] [#]} ({Better is} 17... Qxc5 $1 $14 18. Rxc5 Bg6) 18. Rd6 $1 $16 {[%emt 0:11:24] And now Rxc6 would win. White has more active pieces. The black rooks are badly placed.} O-O $2 {[%emt 0:01:26][%mdl 8192] A mistake that costs the game.} (18... Rd8 $16 {is more resistant.} 19. Rxd8+ Nxd8) 19. Rxc6 $1 $18 {[%emt 0:00:30][%mdl 64] Discovered Attack. White is clearly winning.} Qf6 {[%emt 0:05:43]} 20. Rb6 {[%emt 0:01:25]} Be4 {[%emt 0:03:27]} 21. Qd4 {[%emt 0:00:44]} Bc6 {[%emt 0:02:13]} 22. Qxf6 {[%emt 0:00:08]} gxf6 {[%emt 0:00:05]} 23. Nd4 {[%emt 0:00:18]} Bd5 {[%emt 0:00:56]} 24. b3 {[%emt 0:00:26]} Rac8 {[%emt 0:01:28]} 25. Rxc8 {[%emt 0:00:12]} Rxc8 {[%emt 0:00:04]} 26. h4 {[%emt 0:00:21]} Kf8 {[%emt 0:02:48]} 27. Bf3 {[%emt 0:00:55]} Bxf3 {[%emt 0:00:20]} 28. gxf3 {[%emt 0:00:12][%mdl 4096] Endgame KRN-KR} Rc7 {[%emt 0:00:10]} 29. a4 {[%emt 0:00:38][%cal Ba2a4,Ba4a5][%mdl 32]} Ke7 {[%emt 0:00:39]} 30. a5 {[%emt 0:00:10]} Kd7 {[%emt 0:00:53]} 31. b4 {[%emt 0:00:11]} Kc8 {[%emt 0:00:16]} 32. Nb3 {[%emt 0:00:11]} h6 {[%emt 0:02:08]} 33. Nc5 {[%emt 0:00:07]} Re7 {[%emt 0:02:07]} 34. Kg2 {[%emt 0:00:06]} h5 {[%emt 0:02:39]} 35. Ne4 {[%emt 0:00:21]} f5 {[%emt 0:00:29]} 36. Nf6 {[%emt 0:00:09] Weighted Error Value: White=0.12 (very precise) /Black=0.59} 1-0